{"text_format":"1","workbook":"xlsx","n_sheets":2,"sheets":["Pers. Salariées-rentières","Pers. Indépendantes - source"],"not_rendered":{"charts":0,"images":2,"macros":0,"external_links":0,"defined_names":0,"comments":0,"pivot_tables":0},"unopened":[],"bounds":{"document_bytes":16777216,"sheet_cells":100000,"rows_first":2000,"rows_last":500,"rows_between":2000,"halvings":0,"cell_chars":16384,"cell_head_chars":4096},"cells_cut":0,"cells_raw":0,"read":"whole","date_system":"1900"}

{"sheet":"Pers. Salariées-rentières","index":0,"n_rows":85,"n_cols":6,"rows_kept":85,"cut":false,"hidden":false,"merged":[[57,0,57,2],[51,0,51,1],[51,2,51,5],[52,0,52,1],[52,2,52,5],[53,0,53,5],[67,1,67,2],[58,1,58,2],[59,0,59,2],[59,3,59,4],[60,1,60,2],[61,1,61,2],[62,1,62,2],[63,1,63,2],[64,1,64,2],[65,1,65,2],[66,0,66,2],[66,3,66,4],[79,1,79,2],[68,0,68,5],[69,0,69,2],[70,1,70,2],[71,1,71,2],[72,0,72,5],[73,0,73,4],[75,0,75,4],[76,0,76,5],[77,0,78,2],[77,3,77,5],[78,3,78,4],[84,0,84,2],[84,3,84,4],[80,0,80,2],[80,3,80,4],[81,0,81,2],[81,3,81,4],[82,0,82,2],[82,3,82,4]]}
[]
[]
[null,null,null,null,"Commune de Mont-Vully"]
[null,null,null,null,"Rte Principale 65 – 1786 Nant"]
[null,null,null,null,"( 026 673.90.40"]
[null,null,null,null,"info@mont-vully.ch"]
[]
[]
["Demande de contributions pour l'accueil extrascolaire le Pavillon du Vully"]
[]
["1. Informations concernant l’enfant / les enfants inscrit/s au Pavillon du Vully"]
[]
["1er enfant","Nom et prénom :"]
[null,"Date de naissance :"]
[null,"Degré scolaire : "]
[]
["2ème enfant","Nom et prénom :"]
[null,"Date de naissance :"]
[null,"Degré scolaire : "]
[]
["3ème enfant","Nom et prénom :"]
[null,"Date de naissance :"]
[null,"Degré scolaire : "]
[]
["2.1 Requérant/e "]
[]
[null,"Nom et prénom:"]
[null,"Rue, no:"]
[null,"NPA, localité:"]
[null,"Date de naissance:",null,null,"Etat civil:"]
[null,"Tél.:"]
[null,"adresse mail:"]
[null,"o Employé/e",null,"pourcentage d'engagement : "]
[null,"o Indépendant/e"]
[null,"o En formation"]
[null,"o Au chômage (ORP)"]
[]
["2.2 Conjoint/e - Concubin/e"]
[]
[null,"Nom et prénom:"]
[null,"Rue, no:"]
[null,"NPA, localité:"]
[null,"Date de naissance:",null,null,"Etat civil:"]
[null,"Tél.:"]
[null,"adresse mail:"]
[null,"o Employé/e",null,"pourcentage d'engagement"]
[null,"o Indépendant/e"]
[null,"o En formation"]
[null,"o Au chômage (ORP)"]
[]
[]
["familles mariées ou monoparentales",null,"remplir la première colonne en fonction des données du dernier avis de taxation fiscale"]
["familles en concubinage*",null,"remplir les deux colonnes en fonction des données du dernier avis de taxation fiscale"]
["*Dans le cas d’un concubinage où l’un des concubins n’est pas le parent de l’enfant placé, le tarif est calculé sur l’avis de taxation des deux partenaires,\n si le concubinage dure depuis au moins 2 ans ou si le couple reconnaît son concubinage"]
["Veuillez vous baser sur les données de la colonne Dét. taux (impôt cantonal) de votre avis de taxation"]
["Nombre d'enfants à charge",null,null,"Enfant(s) à charge figurant/l'avis de taxation","année de l'avis \nde taxation"]
[]
["Personnes salariées/rentières\n(pour les indépendants, veuillez vous adresser au bureau de l'administration communale)",null,null,"1er avis de taxation","2ème avis de taxation","Montants pris en compte dans le calcul du revenu déterminant"]
[4.91,"Revenu net",null,0,0,{"$f":"D59+E59","v":0}]
["A rajouter les postes suivants:",null,null,"(mettre les valeurs en positif)"]
[4.1100000000000003,"Caisse-maladie et accidents",null,0,0,{"$f":"D61+E61","v":0}]
[4.12,"Autres primes et cotisations",null,0,0,{"$f":"D62+E62","v":0}]
[4.13,"Primes prévoyance liée 3a",null,0,0,{"$f":"D63+E63","v":0}]
[4.1399999999999997,"2ème pilier, caisse de pension",null,0,0,{"$f":"D64+E64","v":0}]
[4.21,"Dettes privées \n(part > fr. 30'000.00)",null,0,0,{"$f":"IF((D65+E65)>30000,((D65+E65)-30000),0)","v":0}]
[4.3099999999999996,"Frais d'immeubles privés \n(part > fr. 15'000.00)",null,0,0,{"$f":"IF((D66+E66)>15000,((D66+E66)-15000),0)","v":0}]
["A rajouter la \"fortune imposable\" (¹ revenu)",null,null,"(seulement les montants positifs)"]
[7.91,"Fortune imposable\n(vingtième soit 5%)",null,0,0,{"$f":"(D68+E68)*0.05","v":0}]
[]
["Personnes imposées à la source",null,null,"1er avis de taxation","2ème avis de taxation","Montants pris en compte dans le calcul du revenu déterminant"]
["Revenu brut soumis à l'impôt","pris en compte à 80%",null,0,0,{"$f":"(D71+E71)*0.8","v":0}]
["Fortune imposable","Fortune imposable\n(vingtième soit 5%)",null,0,0,{"$f":"(D72+E72)*0.05","v":0}]
[]
["Déduction enfant(s) à charge (- fr. 11'500.00 par enfant, dès le 2ème enfant à charge)",null,null,null,null,{"$f":"IF(C56>=2,(C56-1)*-11500,0)","v":0}]
[]
["Revenu déterminant pour le calcul du tarif de garde",null,null,null,null,{"$f":"SUM(F59:F68,F71:F72,F74)","v":0}]
["Ce tableau n'a qu'une valeur indicative.\nLe tarif définitif est calculé par l'administration communale de la commune de résidence, sur présentation des documents complets."]
["Tarif net à payer pour les parents",null,null,"TARIF PAR ENFANT"]
[]
[]
["Subvention communale"]
["Subvention Etat-Employeurs"]
["Avis de taxation\nLe calcul du revenu déterminant pour la fixation du tarif de placement d’un enfant se base sur le dernier avis de taxation applicable.  ",null,null,"Confirmation du tarif et de la subvention\nLa commune confirmera par écrit la subvention accordée aux parents avec une copie à la responsable du Pavillon du Vully"]
[]
["Date et visa du contrôle des habitants:",null,null,"Confirmation du tarif et de la subvention envoyé aux parents et à la responsable du Pavillon du Vully:",null,"Sceau:"]

{"sheet":"Pers. Indépendantes - source","index":1,"n_rows":44,"n_cols":6,"rows_kept":44,"cut":false,"hidden":false,"merged":[[43,0,43,2],[43,3,43,4],[39,0,39,2],[39,3,39,4],[40,0,40,2],[40,3,40,4],[41,0,41,2],[41,3,41,4],[38,1,38,2],[27,0,27,5],[28,0,28,2],[29,1,29,2],[30,1,30,2],[31,0,31,5],[32,0,32,4],[34,0,34,4],[35,0,35,5],[36,0,37,2],[36,3,36,5],[37,3,37,4],[26,1,26,2],[18,1,18,2],[19,0,19,2],[19,3,19,4],[20,1,20,2],[21,1,21,2],[22,1,22,2],[23,1,23,2],[24,1,24,2],[25,0,25,2],[25,3,25,4],[17,0,17,2],[11,0,11,1],[11,2,11,5],[12,0,12,1],[12,2,12,5],[13,0,13,5]]}
[]
[]
[null,null,null,null,"Commune de Mont-Vully"]
[null,null,null,null,"Rte Principale 65 – 1786 Nant"]
[null,null,null,null,"( 026 673.90.40"]
[null,null,null,null,"info@mont-vully.ch"]
[]
[]
["Demande de contributions pour l'accueil extrascolaire le Pavillon du Vully"]
[]
["Tableau à remplir pour les personnes indépendantes"]
["familles mariées ou monoparentales",null,"remplir la première colonne en fonction des données du dernier avis de taxation fiscale"]
["familles en concubinage*",null,"remplir les deux colonnes en fonction des données du dernier avis de taxation fiscale"]
["*Dans le cas d’un concubinage où l’un des concubins n’est pas le parent de l’enfant placé, le tarif est calculé sur l’avis de taxation des deux partenaires,\n si le concubinage dure depuis au moins 2 ans ou si le couple reconnaît son concubinage"]
["Veuillez vous baser sur les données de la colonne Dét. taux (impôt cantonal) de votre avis de taxation"]
["Nombre d'enfants à charge",null,null,"Enfant(s) à charge figurant/l'avis de taxation","année de l'avis \nde taxation"]
[]
["Personnes indépendantes",null,null,"1er avis de taxation","2ème avis de taxation","Montants pris en compte dans le calcul du revenu déterminant"]
[4.91,"Revenu net",null,0,0,{"$f":"D19+E19","v":0}]
["A rajouter les postes suivants:",null,null,"(mettre les valeurs en positif)"]
[4.1100000000000003,"Caisse-maladie et accidents",null,0,0,{"$f":"D21+E21","v":0}]
[4.12,"Autres primes et cotisations",null,0,0,{"$f":"D22+E22","v":0}]
[4.1399999999999997,"Rachat d'années d'assurance 2ème pilier, caisse de pension (part > fr. 15'000.00)",null,0,0,{"$f":"IF((D23+E23)>15000,((D23+E23)-15000),0)","v":0}]
[4.21,"Dettes privées \n(part > fr. 30'000.00)",null,0,0,{"$f":"IF((D24+E24)>30000,((D24+E24)-30000),0)","v":0}]
[4.3099999999999996,"Frais d'immeubles privés \n(part > fr. 15'000.00)",null,0,0,{"$f":"IF((D25+E25)>15000,((D25+E25)-15000),0)","v":0}]
["A rajouter la \"fortune imposable\" (¹ revenu)",null,null,"(seulement les montants positifs)"]
[7.91,"Fortune imposable\n(vingtième soit 5%)",null,0,0,{"$f":"(D27+E27)*0.05","v":0}]
[]
["Personnes imposées à la source",null,null,"1er avis de taxation","2ème avis de taxation","Montants pris en compte dans le calcul du revenu déterminant"]
["Revenu brut soumis à l'impôt","pris en compte à 80%",null,0,0,{"$f":"(D30+E30)*0.8","v":0}]
["Fortune imposable","Fortune imposable\n(vingtième soit 5%)",null,0,0,{"$f":"(D31+E31)*0.05","v":0}]
[]
["Déduction enfant(s) à charge (- fr. 11'500.00 par enfant, dès le 2ème enfant à charge)",null,null,null,null,{"$f":"IF(C16>=2,(C16-1)*-11500,0)","v":0}]
[]
["Revenu déterminant pour le calcul du tarif de garde",null,null,null,null,{"$f":"SUM(F19:F27,F30:F31,F33)","v":0}]
["Ce tableau n'a qu'une valeur indicative.\nLe tarif définitif est calculé par l'administration communale de la commune de résidence, sur présentation des documents complets."]
["Tarif net à payer pour les parents",null,null,"TARIF PAR ENFANT"]
[]
[]
["Subvention communale"]
["Subvention Etat-Employeurs"]
["Avis de taxation\nLe calcul du revenu déterminant pour la fixation du tarif de placement d’un enfant se base sur le dernier avis de taxation applicable.  ",null,null,"Confirmation du tarif et de la subvention\nLa commune confirmera par écrit la subvention accordée aux parents avec une copie à la responsable du Pavillon du Vully"]
[]
["Date et visa du contrôle des habitants:",null,null,"Confirmation du tarif et de la subvention envoyé aux parents et à la reponsable du Pavillon du Vully :",null,"Sceau:"]